fUSD/lending_fUSD_20250629
["ID","MTS","AMOUNT","RATE_DAILY","PERIOD"]
[368455681,1751182279852,-926.52,0.00028429,3]
[368455682,1751182279862,-1419.18,0.00028429,3]
[368455683,1751182279871,-490.0,0.00028429,3]
[368455684,1751182279881,-542.56,0.00028429,2]
[368455685,1751182279890,-490.0,0.00028429,3]
[368455686,1751182279899,-490.0,0.00028429,3]
[368455687,1751182279908,-1795.78,0.00028429,3]
[368455688,1751182279917,-2190.73,0.00028429,3]
[368455689,1751182279927,-490.0,0.00028429,3]
[368455690,1751182279935,-490.0,0.00028429,3]
[368455691,1751182279944,-1308.62,0.00028429,3]
[368455692,1751182279953,-490.0,0.00028429,3]
[368455693,1751182279962,-5038.91,0.00028429,3]
[368455694,1751182279972,-490.0,0.00028429,3]
[368455695,1751182279982,-490.0,0.00028429,3]
[368455696,1751182279991,-2195.476821,0.00028429,3]
[368455697,1751182280000,-158.454064,0.00028429,3]
[368455698,1751182280010,-1062.78,0.00028429,3]
[368455699,1751182280019,-490.0,0.00028429,3]
[368455700,1751182280028,-472.79740952,0.00028429,3]
[368455701,1751182280038,-151.887036,0.00028429,3]
[368455702,1751182280047,-1918.05,0.00028429,3]
[368455703,1751182280057,-367.73829,0.00028429,3]
[368455704,1751182280066,-490.0,0.00028429,3]
[368455705,1751182280075,-2779.41,0.00028429,3]
[368455706,1751182280085,-9441.19,0.00028429,3]
[368455707,1751182280094,-2940.912066,0.00028429,3]
[368455708,1751182280104,-2450.95,0.00028429,3]
[368455709,1751182280114,-490.0,0.00028429,3]
[368455710,1751182280123,-403.77053278,0.00028429,3]
[368455711,1751182280133,-1090.76,0.00028429,3]
[368455712,1751182280143,-709.65,0.00028429,3]
[368455713,1751182280152,-226.3614531,0.00028429,3]
[368455714,1751182280161,-2226.72,0.00028429,3]
[368455715,1751182280170,-2138.51,0.00028429,3]
[368455716,1751182280180,-3209.867075,0.00028429,3]
[368455717,1751182280190,-1417.53,0.00028429,3]
[368455718,1751182280199,-1745.41,0.00028429,3]
[368455719,1751182280208,-2036.27,0.00028429,3]
[368455720,1751182280217,-490.0,0.00028429,3]
[368455721,1751182280227,-490.0,0.00028429,3]
[368455722,1751182280236,-1436.09,0.00028429,3]
[368455723,1751182280245,-490.0,0.00028429,3]
[368455724,1751182280253,-343.07,0.00028429,3]
[368455725,1751182280263,-2301.62,0.00028429,3]
[368455726,1751182280272,-1622.86,0.00028429,3]
[368455727,1751182280281,-10744.09,0.00028429,3]
[368455728,1751182280291,-490.0,0.00028429,3]
[368455729,1751182280300,-490.0,0.00028429,3]
[368455730,1751182280310,-490.0,0.00028429,3]
[368455731,1751182280319,-490.0,0.00028429,3]
[368455732,1751182280328,-490.0,0.00028429,3]
[368455733,1751182280337,-490.0,0.00028429,3]
[368455734,1751182280346,-490.0,0.00028429,3]
[368455735,1751182280356,-1177.75,0.00028429,3]
[368455736,1751182280366,-2436.87,0.00028429,3]
[368455737,1751182280376,-1919.68,0.00028429,3]
[368455738,1751182280385,-2799.08,0.00028429,3]
[368455739,1751182280394,-490.0,0.00028429,3]
[368455740,1751182280403,-490.0,0.00028429,3]
[368455741,1751182280413,-490.0,0.00028429,3]
[368455742,1751182280423,-1099.67,0.00028429,3]
[368455743,1751182280433,-2829.49,0.00028429,3]
[368455744,1751182280443,-1311.27,0.00028429,3]
[368455745,1751182280452,-490.0,0.00028429,3]
[368455746,1751182280462,-154.974835,0.00028429,3]
[368455747,1751182280472,-1298.79,0.00028429,3]
[368455748,1751182280482,-2812.32,0.00028429,3]
[368455749,1751182280494,-2589.71,0.00028429,3]
[368455750,1751182280505,-490.0,0.00028429,3]
[368455751,1751182280515,-554.13,0.00028429,3]
[368455752,1751182280524,-369.36760611,0.00028429,3]
[368455753,1751182280533,-490.0,0.00028429,3]
[368455754,1751182280543,-2344.32,0.00028429,3]
[368455755,1751182280552,-153.43889,0.00028429,3]
[368455756,1751182280562,-490.0,0.00028429,3]
[368455757,1751182280570,-1318.19,0.00028429,3]
[368455758,1751182280579,-492.08990123,0.00028429,3]
[368455759,1751182280589,-2236.75,0.00028429,3]
[368455760,1751182280598,-1960.8,0.00028429,3]
[368455761,1751182280607,-490.0,0.00028429,3]
[368455762,1751182280616,-1862.37,0.00028429,3]
[368455763,1751182280625,-490.0,0.00028429,3]
[368455764,1751182280634,-4588.45,0.00028429,3]
[368455765,1751182280644,-160.493354,0.00028429,3]
[368455766,1751182280653,-490.0,0.00028429,3]
[368455767,1751182280663,-13062.02,0.00028429,3]
[368455768,1751182280672,-490.0,0.00028429,3]
[368455769,1751182280681,-1135.27,0.00028429,3]
[368455770,1751182280690,-775.07,0.0002843,3]
[368455771,1751182280700,-1012.34,0.0002843,3]
[368455772,1751182280710,-490.0,0.0002843,3]
[368455773,1751182280719,-490.0,0.0002843,3]
[368455774,1751182280728,-490.0,0.0002843,3]
[368455775,1751182280738,-490.0,0.0002843,3]
[368455776,1751182280747,-2260.52,0.0002843,3]
[368455777,1751182280757,-1530.6,0.0002843,3]
[368455778,1751182280766,-2154.93,0.0002843,3]
[368455779,1751182280775,-2500.0,0.0002843,3]
[368455780,1751182280784,-886.28,0.0002843,3]
[368455781,1751182280794,-1930.86,0.0002843,3]
[368455782,1751182280803,-1969.92,0.0002843,3]
[368455783,1751182280813,-1372.39,0.0002843,3]
[368455784,1751182280822,-490.0,0.0002843,3]
[368455785,1751182280832,-490.0,0.0002843,3]
[368455786,1751182280842,-490.0,0.0002843,3]
[368455787,1751182280851,-490.0,0.0002843,3]
[368455788,1751182280860,-508.83355681,0.0002843,3]
[368455789,1751182280868,-628.30372291,0.0002843,3]
[368455790,1751182280878,-1425.91,0.0002843,3]
[368455791,1751182280887,-2179.7,0.0002843,3]
[368455792,1751182280897,-1435.02,0.0002843,3]
[368455793,1751182280908,-1284.69,0.0002843,3]
[368455794,1751182280918,-2961.57,0.0002843,3]
[368455795,1751182280929,-381.40603427,0.0002843,3]
[368455796,1751182280939,-2544.77,0.0002843,3]
[368455797,1751182280949,-490.0,0.0002843,3]
[368455798,1751182280959,-1245.79,0.0002843,3]
[368455799,1751182280969,-490.0,0.0002843,3]
[368455800,1751182280979,-1321.57,0.0002843,3]
[368455801,1751182280988,-2300.75,0.0002843,3]
[368455802,1751182280998,-2011.03,0.0002843,3]
[368455803,1751182281008,-490.0,0.0002843,3]
[368455804,1751182281017,-490.0,0.0002843,3]
[368455805,1751182281027,-490.0,0.0002843,3]
[368455806,1751182281038,-2320.15,0.0002843,3]
[368455807,1751182281047,-1037.74,0.0002843,3]
[368455808,1751182281057,-2583.7,0.0002843,3]
[368455809,1751182281067,-1155.94,0.0002843,3]
[368455810,1751182281076,-2883.83,0.0002843,3]
[368455811,1751182281086,-490.0,0.0002843,3]
[368455812,1751182281095,-490.0,0.0002843,3]
[368455813,1751182281105,-1807.92,0.0002843,3]
[368455814,1751182281114,-1810.73,0.0002843,3]
[368455815,1751182281124,-601.05,0.0002843,3]
[368455816,1751182281134,-1821.33,0.0002843,3]
[368455817,1751182281143,-2243.07,0.0002843,3]
[368455818,1751182281153,-490.0,0.0002843,3]
[368455819,1751182281163,-1737.55,0.0002843,3]
[368455820,1751182281173,-1679.85,0.0002843,3]
[368455821,1751182281185,-2079.58,0.0002843,3]
[368455822,1751182281195,-2091.86,0.0002843,3]
[368455823,1751182281205,-490.0,0.0002843,3]
[368455824,1751182281214,-793.31,0.0002843,3]
[368455825,1751182281224,-1873.65,0.0002843,3]
[368455826,1751182281234,-1518.56,0.0002843,3]
[368455827,1751182281244,-1380.13,0.0002843,3]
[368455828,1751182281254,-1874.18,0.0002843,3]
[368455829,1751182281264,-490.0,0.0002843,3]
[368455830,1751182281274,-1299.19,0.0002843,3]
[368455831,1751182281283,-546.34,0.0002843,3]
[368455832,1751182281293,-2122.4,0.0002843,3]
[368455833,1751182281303,-3200.43,0.0002843,3]
[368455834,1751182281312,-1835.86,0.0002843,3]
[368455835,1751182281322,-4705.46,0.0002843,3]
[368455836,1751182281331,-490.15,0.0002843,3]
[368455837,1751182281341,-2941.76,0.0002843,3]
[368455838,1751182281350,-806.93,0.0002843,3]
[368455839,1751182281360,-3406.06,0.0002843,3]
[368455840,1751182281370,-4388.37,0.0002843,3]
[368455841,1751182281380,-2455.53,0.0002843,3]
[368455842,1751182281389,-3125.81,0.0002843,3]
[368455843,1751182281399,-1867.83,0.0002843,3]
[368455844,1751182281409,-2248.55,0.0002843,3]
[368455845,1751182281418,-2165.49,0.0002843,3]
[368455846,1751182281428,-536.97,0.0002843,3]
[368455847,1751182281438,-3729.06,0.0002843,3]
[368455848,1751182281447,-2702.4,0.0002843,3]
[368455849,1751182281457,-711.24,0.0002843,3]
[368455850,1751182281466,-6737.6,0.0002843,3]
[368455851,1751182281476,-789.86,0.0002843,3]
[368455852,1751182281486,-2289.46,0.0002843,3]
[368455853,1751182281495,-1131.65,0.0002843,3]
[368455854,1751182281505,-490.0,0.0002843,3]
[368455855,1751182281515,-1554.79,0.0002843,3]
[368455856,1751182281526,-2936.86,0.0002843,3]
[368455857,1751182281536,-687.13,0.0002843,3]
[368455858,1751182281545,-2880.67,0.0002843,3]
[368455859,1751182281556,-1874.07,0.0002843,3]
[368455860,1751182281565,-2301.47,0.0002843,3]
[368455861,1751182281575,-490.0,0.0002843,3]
[368455862,1751182281586,-2611.19,0.0002843,3]
[368455863,1751182281596,-1808.02,0.0002843,3]
[368455864,1751182281606,-490.0,0.0002843,3]
[368455865,1751182281615,-1126.61,0.0002843,3]
[368455866,1751182281626,-7374.62,0.0002843,3]
[368455867,1751182281636,-8804.63,0.0002843,3]
[368455868,1751182281646,-1766.37,0.0002843,3]
[368455869,1751182281656,-10168.25,0.0002843,3]
[368455870,1751182281666,-11501.68,0.0002843,3]
[368455871,1751182281675,-1338.4,0.0002843,3]
[368455872,1751182281685,-490.0,0.0002843,3]
[368455873,1751182281695,-4148.45,0.0002843,3]
[368455874,1751182281705,-1396.59,0.0002843,3]
[368455875,1751182281715,-490.0,0.0002843,3]
[368455876,1751182281726,-2806.96,0.0002843,3]
[368455877,1751182281735,-5920.07,0.0002843,3]
[368455878,1751182281745,-2535.69,0.0002843,3]
[368455879,1751182281755,-1686.82,0.0002843,3]
[368455880,1751182281765,-490.0,0.0002843,3]
[368455881,1751182281774,-2708.06,0.0002843,3]
[368455882,1751182281783,-1662.59,0.0002843,3]
[368455883,1751182281793,-490.0,0.0002843,3]
[368455884,1751182281803,-1933.66,0.0002843,3]
[368455885,1751182281813,-490.0,0.0002843,3]
[368455886,1751182281822,-490.0,0.00028438,3]
[368455887,1751182281831,-490.0,0.00028438,3]
[368455888,1751182281840,-490.0,0.00028438,3]
[368455889,1751182281850,-490.0,0.00028438,3]
[368455890,1751182281860,-490.0,0.00028438,3]
[368455891,1751182281869,-490.0,0.00028438,3]
[368455892,1751182281879,-490.0,0.00028438,3]
[368455893,1751182281890,-490.0,0.00028438,3]
[368455894,1751182281899,-490.0,0.00028438,3]
[368455895,1751182281909,-490.0,0.00028438,3]
[368455896,1751182281918,-964.19,0.00028438,3]
[368455897,1751182281927,-2951.27,0.00028438,3]
[368455898,1751182281937,-2756.58,0.00028438,3]
[368455899,1751182281946,-3180.03,0.00028438,3]
[368455900,1751182281956,-6822.42,0.00028438,3]
[368455901,1751182281966,-1477.92,0.00028438,3]
[368455902,1751182281975,-2515.35,0.00028438,3]
[368455903,1751182281985,-2328.17,0.00028438,3]
[368455904,1751182281995,-590.04,0.00028438,3]
[368455905,1751182282004,-3777.15,0.00028438,3]
[368455906,1751182282015,-2074.62,0.00028438,3]
[368455907,1751182282025,-4278.36,0.00028438,3]
[368455908,1751182282035,-4385.06,0.00028438,3]
[368455909,1751182282045,-2735.66,0.00028438,3]
[368455910,1751182282055,-2135.46,0.00028438,3]
[368455911,1751182282065,-4138.99,0.00028438,3]
[368455912,1751182282075,-500.0,0.00028438,3]
[368455913,1751182282085,-4694.82,0.00028438,3]
[368455914,1751182282095,-150.0,0.00028438,2]
[368455915,1751182282105,-3835.69,0.00028438,3]
[368455916,1751182282116,-3587.26,0.00028438,3]
[368455917,1751182282126,-1142.37,0.00028439,3]
[368455918,1751182282137,-859.15,0.00028439,3]
[368455919,1751182282147,-490.0,0.00028439,3]
[368455920,1751182282156,-490.0,0.00028439,3]
[368455921,1751182282167,-686.69,0.00028439,3]
[368455922,1751182282177,-490.0,0.00028439,3]
[368455923,1751182282187,-1243.41,0.00028439,3]
[368455924,1751182282197,-610.42,0.00028439,3]
[368455925,1751182282207,-490.0,0.00028439,3]
[368455926,1751182282217,-490.0,0.00028439,3]
[368455927,1751182282227,-6449.94,0.00028439,3]
[368455928,1751182282236,-2428.46,0.00028439,3]
[368455929,1751182282246,-2302.8,0.00028439,3]
[368455930,1751182282256,-2237.95,0.00028439,3]
[368455931,1751182282265,-1270.62,0.00028439,3]
[368455932,1751182282275,-3063.2,0.00028439,3]
[368455933,1751182282285,-3728.98,0.00028439,3]
[368455934,1751182282294,-1956.9,0.00028439,3]
[368455935,1751182282304,-421.7,0.00028439,3]
[368455936,1751182282314,-3352.59,0.00028439,3]
[368455937,1751182282324,-2398.93,0.00028439,3]
[368455938,1751182282334,-760.07,0.00028439,3]
[368455939,1751182282343,-1679.51,0.00028439,3]
[368455940,1751182282353,-1300.72,0.00028439,3]
[368455941,1751182282363,-1231.97,0.00028439,3]
[368455942,1751182282372,-4027.43,0.00028439,3]
[368455943,1751182282382,-1699.97,0.00028439,3]
[368455944,1751182282392,-3154.44,0.00028439,3]
[368455945,1751182282402,-2249.68,0.00028439,3]
[368455946,1751182282412,-2816.41,0.00028439,3]
[368455947,1751182282422,-2391.75,0.00028439,3]
[368455948,1751182282432,-29872.53,0.00028439,3]
[368455949,1751182282442,-2458.27,0.0002844,3]
[368455950,1751182282452,-929.38,0.0002844,3]
[368455951,1751182282462,-3630.15,0.0002844,3]
[368455952,1751182282472,-2325.15,0.0002844,3]
[368455953,1751182282482,-16257.32,0.0002844,3]
[368455954,1751182282492,-7724.83,0.0002844,3]
[368455955,1751182282502,-2149.5,0.0002844,3]
[368455956,1751182282512,-5677.04,0.0002844,3]
[368455957,1751182282523,-2531.52,0.0002844,3]
[368455958,1751182282534,-6800.29,0.0002844,3]
[368455959,1751182282543,-3276.18,0.0002844,3]
[368455960,1751182282553,-3692.76,0.0002844,3]
[368455961,1751182282564,-14547.11,0.0002844,3]
[368455962,1751182282574,-4651.63,0.0002844,3]
[368455963,1751182282584,-5615.45,0.0002844,3]
[368455964,1751182282594,-2445.2,0.0002844,3]
[368455965,1751182282605,-1449.77,0.0002844,3]
[368455966,1751182282615,-6377.64,0.0002844,3]
[368455967,1751182282625,-9534.23,0.0002844,3]
[368455968,1751182282635,-965.3,0.0002844,3]
[368455969,1751182282645,-5998.34,0.0002844,3]
[368455970,1751182282656,-2020.83,0.0002844,3]
[368455971,1751182282665,-3627.03,0.0002844,3]
[368455972,1751182282675,-3212.39,0.0002844,3]
[368455973,1751182282686,-1870.81,0.0002844,3]
[368455974,1751182282696,-3110.6,0.0002844,3]
[368455975,1751182282706,-2825.64,0.0002844,3]
[368455976,1751182282716,-3598.8,0.0002844,3]
[368455977,1751182282726,-382.05658395,0.00028451,2]
[368455978,1751182282736,-1700.74,0.00028464,3]
[368455979,1751182282746,-2487.02,0.00028465,3]
[368455980,1751182282756,-1845.49,0.00028465,3]
[368455981,1751182282766,-2632.01,0.00028465,3]
[368455982,1751182282776,-2875.39,0.00028465,3]
[368455983,1751182282786,-2256.12,0.00028465,3]
[368455984,1751182282795,-1543.17,0.00028465,3]
[368455985,1751182282807,-490.0,0.00028465,3]
[368455986,1751182282817,-1270.42,0.00028465,3]
[368455987,1751182282827,-2664.48,0.00028465,3]
[368455988,1751182282836,-2024.82,0.00028465,3]
[368455989,1751182282846,-3096.41,0.00028465,3]
[368455990,1751182282856,-490.0,0.00028465,3]
[368455991,1751182282866,-853.51,0.00028465,3]
[368455992,1751182282876,-1001.71,0.00028465,3]
[368455993,1751182282886,-1011.42,0.00028465,3]
[368455994,1751182282896,-1167.67,0.00028465,3]
[368455995,1751182282905,-1965.76,0.00028465,3]
[368455996,1751182282916,-2274.31,0.00028465,3]
[368455997,1751182282926,-2475.8,0.00028465,3]
[368455998,1751182282936,-490.0,0.00028465,3]
[368455999,1751182283191,-2942.82,0.00028465,3]
[368456000,1751182283201,-1378.0,0.00028465,3]
[368456001,1751182283210,-490.0,0.00028465,3]
[368456002,1751182283220,-490.0,0.00028465,3]
[368456003,1751182283230,-1999.68,0.00028465,3]
[368456004,1751182283239,-2348.9,0.00028465,3]
[368456005,1751182283250,-1936.54,0.00028465,3]
[368456006,1751182283260,-2004.24,0.00028465,3]
[368456007,1751182283269,-490.0,0.00028465,3]
[368456008,1751182283279,-740.11,0.00028465,3]
[368456009,1751182283288,-687.27,0.00028465,3]
[368456010,1751182283297,-490.0,0.00028465,3]
[368456011,1751182283306,-159.72974989,0.00028473,2]
[368456012,1751182283316,-159.72974989,0.00028473,2]
[368456013,1751182283325,-256.13504802,0.00028473,5]
[368456014,1751182283334,-500.0,0.00028473,5]
[368456015,1751182283344,-159.727904,0.00028473,5]
[368456016,1751182283353,-159.72974989,0.00028473,5]
[368456017,1751182283362,-159.727904,0.00028473,5]
[368456018,1751182283371,-159.72974989,0.00028473,2]
[368456019,1751182283381,-164.72130458,0.00028473,2]
[368456020,1751182283390,-159.727904,0.00028473,5]
[368456021,1751182283399,-159.72974989,0.00028473,5]
[368456022,1751182283408,-159.72974989,0.00028473,5]
[368456023,1751182283419,-159.727904,0.00028473,5]
[368456024,1751182283428,-500.0,0.00028473,5]
[368456025,1751182283437,-318.60265004,0.00028473,5]
[368456026,1751182283446,-500.0,0.00028473,5]
[368456027,1751182283456,-500.0,0.00028473,5]
[368456028,1751182283466,-500.0,0.00028473,5]
[368456029,1751182283475,-333.88821153,0.00028473,5]
[368456030,1751182283485,-500.0,0.00028473,5]
[368456031,1751182283494,-500.0,0.00028473,5]
[368456032,1751182283504,-500.0,0.00028473,5]
[368456033,1751182283514,-163.52092988,0.00028473,5]
[368456034,1751182283525,-500.0,0.00028473,5]
[368456035,1751182283535,-500.0,0.00028473,5]
[368456036,1751182283546,-500.0,0.00028473,5]
[368456037,1751182283555,-164.40384505,0.00028473,5]
[368456038,1751182283565,-1032.24,0.00028493,3]
[368456039,1751182283575,-986.88,0.00028493,3]
[368456040,1751182283587,-2426.13,0.00028493,3]
[368456041,1751182283596,-2321.5,0.00028493,3]
[368456042,1751182283606,-540.05,0.00028493,3]
[368456043,1751182283616,-524.65,0.00028493,3]
[368456044,1751182283625,-2244.43,0.00028493,3]
[368456045,1751182283634,-2131.08,0.00028493,3]
[368456046,1751182283644,-490.0,0.00028493,3]
[368456047,1751182283654,-2868.24,0.00028493,3]
[368456048,1751182283663,-552.44,0.00028493,3]
[368456049,1751182283673,-490.0,0.00028493,3]
[368456050,1751182283683,-2130.69,0.00028493,3]
[368456051,1751182283692,-656.57,0.00028493,3]
[368456052,1751182283702,-490.0,0.00028493,3]
[368456053,1751182283711,-2139.8,0.00028493,3]
[368456054,1751182283721,-1096.93,0.00028493,3]
[368456055,1751182283730,-490.0,0.00028493,2]
[368456056,1751182283740,-490.0,0.00028493,3]
[368456057,1751182283749,-490.0,0.00028493,3]
[368456058,1751182283759,-490.0,0.00028493,3]
[368456059,1751182283769,-777.88,0.00028493,3]
[368456060,1751182283778,-1000.0,0.000285,2]
[368456061,1751182283787,-500.0,0.00028549,3]
[368456062,1751182283796,-501.12,0.0002855,3]
[368456063,1751182283806,-490.0,0.0002855,3]
[368456064,1751182283815,-490.0,0.0002855,3]
[368456065,1751182283824,-490.0,0.0002855,3]
[368456066,1751182283834,-898.79,0.0002855,3]
[368456067,1751182283843,-439.1710959,0.0002855,3]
[368456068,1751182283853,-802.69,0.0002855,3]
[368456069,1751182283864,-709.67,0.0002855,3]
[368456070,1751182283874,-526.62440196,0.0002855,3]
[368456071,1751182283884,-490.0,0.0002855,3]
[368456072,1751182283898,-490.0,0.0002855,3]
[368456073,1751182283907,-498.20830072,0.0002855,3]
[368456074,1751182283917,-557.87,0.0002855,3]
[368456075,1751182283926,-490.0,0.0002855,3]
[368456076,1751182283936,-490.0,0.0002855,3]
[368456077,1751182283945,-490.0,0.0002855,3]
[368456078,1751182283955,-912.98,0.0002855,3]
[368456079,1751182283964,-866.34,0.0002855,3]
[368456080,1751182283974,-600.24,0.0002855,3]
[368456081,1751182283984,-490.0,0.0002855,3]
[368456082,1751182283993,-500.23,0.0002855,3]
[368456083,1751182284003,-1027.74,0.0002855,3]
[368456084,1751182284013,-490.0,0.0002855,3]
[368456085,1751182284023,-490.0,0.0002855,3]
[368456086,1751182284033,-490.0,0.0002855,3]
[368456087,1751182284043,-1039.95,0.0002855,3]
[368456088,1751182284053,-490.0,0.0002855,3]
[368456089,1751182284063,-490.0,0.0002855,3]
[368456090,1751182284073,-490.0,0.0002855,3]
[368456091,1751182284083,-490.0,0.0002855,3]
[368456092,1751182284092,-742.48,0.0002855,3]
[368456093,1751182284102,-586.15,0.0002855,3]
[368456094,1751182284111,-470.04941939,0.0002855,3]
[368456095,1751182284121,-490.0,0.0002855,3]
[368456096,1751182284130,-490.0,0.0002855,3]
[368456097,1751182284140,-490.0,0.0002855,3]
[368456098,1751182284150,-586.74,0.0002855,3]
[368456099,1751182284160,-493.53,0.0002855,3]
[368456100,1751182284170,-1232.64,0.0002855,3]
[368456101,1751182284182,-490.0,0.0002855,3]
[368456102,1751182284192,-727.1,0.0002855,3]
[368456103,1751182284201,-490.0,0.0002855,3]
[368456104,1751182284211,-646.31,0.0002855,3]
[368456105,1751182284220,-490.0,0.0002855,3]
[368456106,1751182284230,-490.0,0.0002855,3]
[368456107,1751182284239,-490.0,0.0002855,3]
[368456108,1751182284249,-490.2,0.0002855,3]
[368456109,1751182284259,-490.0,0.0002855,3]
[368456110,1751182284269,-490.0,0.0002855,3]
[368456111,1751182284278,-490.0,0.0002855,3]
[368456112,1751182284288,-490.0,0.0002855,3]
[368456113,1751182284297,-503.22,0.0002855,3]
[368456114,1751182284306,-490.0,0.0002855,3]
[368456115,1751182284315,-520.2347471,0.0002855,3]
[368456116,1751182284325,-966.34,0.0002855,3]
[368456117,1751182284334,-453.82046788,0.0002855,3]
[368456118,1751182284343,-1194.77,0.0002855,3]
[368456119,1751182284352,-490.0,0.0002855,3]
[368456120,1751182284362,-575.97,0.0002855,3]
[368456121,1751182284371,-490.0,0.0002855,3]
[368456122,1751182284380,-490.0,0.0002855,3]
[368456123,1751182284389,-490.0,0.0002855,3]
[368456124,1751182284398,-490.0,0.0002855,3]
[368456125,1751182284407,-157.32485131,0.0002855,3]
[368456126,1751182284417,-490.0,0.0002855,3]
[368456127,1751182284427,-490.0,0.0002855,3]
[368456128,1751182284437,-490.0,0.0002855,3]
[368456129,1751182284448,-490.0,0.0002855,3]
[368456130,1751182284458,-490.0,0.0002855,3]
[368456131,1751182284468,-490.0,0.0002855,3]
[368456132,1751182284478,-485.08786695,0.0002855,3]
[368456133,1751182284488,-490.0,0.0002855,3]
[368456134,1751182284497,-490.0,0.0002855,3]
[368456135,1751182284507,-526.13,0.0002855,3]
[368456136,1751182284516,-490.0,0.0002855,3]
[368456137,1751182284525,-490.0,0.0002855,3]
[368456138,1751182284535,-490.0,0.0002855,3]
[368456139,1751182284544,-490.0,0.0002855,3]
[368456140,1751182284554,-490.0,0.0002855,3]
[368456141,1751182284564,-490.0,0.0002855,3]
[368456142,1751182284573,-698.09,0.0002855,3]
[368456143,1751182284583,-490.0,0.0002855,3]
[368456144,1751182284592,-1019.81,0.0002855,3]
[368456145,1751182284601,-490.0,0.0002855,3]
[368456146,1751182284611,-632.18669158,0.0002855,3]
[368456147,1751182284620,-490.0,0.0002855,3]
[368456148,1751182284630,-490.0,0.0002855,3]
[368456149,1751182284639,-490.07,0.0002855,3]
[368456150,1751182284648,-490.0,0.0002855,3]
[368456151,1751182284657,-490.0,0.0002855,3]
[368456152,1751182284667,-490.0,0.0002855,3]
[368456153,1751182284677,-358.19919667,0.0002855,3]
[368456154,1751182284686,-490.0,0.0002855,3]
[368456155,1751182284695,-490.0,0.0002855,3]
[368456156,1751182284704,-490.0,0.0002855,3]
[368456157,1751182284713,-490.0,0.0002855,3]
[368456158,1751182284723,-490.0,0.0002855,3]
[368456159,1751182284732,-424.1938609,0.0002855,3]
[368456160,1751182284742,-490.0,0.0002855,3]
[368456161,1751182284751,-524.08,0.0002855,3]
[368456162,1751182284761,-573.76,0.0002855,3]
[368456163,1751182284770,-382.7184281,0.0002855,3]
[368456164,1751182284779,-554.26,0.0002855,3]
[368456165,1751182284789,-490.0,0.0002855,3]
[368456166,1751182284799,-490.0,0.0002855,3]
[368456167,1751182284811,-1209.03,0.0002855,3]
[368456168,1751182284820,-490.0,0.0002855,3]
[368456169,1751182284830,-544.18,0.0002855,3]
[368456170,1751182284839,-490.0,0.0002855,3]
[368456171,1751182284848,-490.0,0.0002855,3]
[368456172,1751182284857,-942.07,0.0002855,3]
[368456173,1751182284867,-1044.0,0.0002855,3]
[368456174,1751182284876,-591.82,0.0002855,3]
[368456175,1751182284886,-490.0,0.0002855,3]
[368456176,1751182284895,-490.0,0.0002855,3]
[368456177,1751182284905,-490.0,0.0002855,3]
[368456178,1751182284914,-490.0,0.0002855,3]
[368456179,1751182284923,-490.0,0.0002855,3]
[368456180,1751182284933,-490.0,0.0002855,3]